[Event "44th Chess Olympiad Open 2022"]
[Site "Chennai"]
[Date "2022.08.05"]
[Round "7.62"]
[White "Tsige, Addisalem Temesgen"]
[Black "Estur, Gavino Aguilar"]
[Result "1-0"]
[ECO "A40"]
[WhiteElo "2072"]
[BlackElo "1598"]
[Annotator "TA"]
[PlyCount "63"]
[EventDate "2022.07.29"]
[EventType "team-tourn"]
[EventCountry "IND"]
[SourceTitle "playchess.com"]
[Source "ChessBase"]
[SourceQuality "1"]
[WhiteTeam "Ethiopia"]
[BlackTeam "GUM"]
[WhiteTeamCountry "ETH"]
[TimeControl "40/5400+30:1800+30"]

{[%evp 9,63,25,43,33,42,31,56,45,72,68,67,4,8,8,11,2,32,24,13,0,37,23,30,14,32,0,9,16,71,33,66,61,56,-24,28,8,462,460,563,591,603,578,813,800,1766,1714,1290,956,931,924,912,909,873,850,1037,1031]} 1. d4 {[%emt 0:00:30]} Nc6 {[%emt 0:00:44]} 2. Bf4 {[%emt 0:00:00]} e6 {[%emt 0:01:01]} 3. e3 {[%emt 0:00:00]} Nf6 {[%emt 0:00:43]} 4. Nd2 {[%emt 0:00:03]} Be7 {[%emt 0:02:00]} 5. c3 {[%emt 0:00:24]} a6 {[%emt 0:02:41]} 6. Bd3 {[%emt 0:00:19] [#] A40: Unusual replies to 1 d4.} b6 $146 {[%emt 0:01:51]} ({Predecessor:} 6... b5 7. h3 Bb7 8. Ngf3 h6 9. O-O Nd5 10. Bh2 d6 11. e4 Nb6 12. Re1 d5 {1-0 (25) Grebenschikov,Y-Popova,A (1674) Novosibirsk 2008}) 7. h3 {[%emt 0:01:31]} Bb7 {[%emt 0:00:21]} 8. Ngf3 {[%emt 0:00:09] White is slightly better.} Bd6 {[%emt 0:03:45]} 9. Bxd6 {[%emt 0:01:11]} (9. Ne5 {is more complex.} Be7 10. Qe2 O-O 11. e4) 9... cxd6 {[%emt 0:00:16]} 10. a4 {[%emt 0:01:47]} ({White should play} 10. e4 $14) 10... d5 $1 $11 {[%emt 0:02:23]} 11. O-O {[%emt 0:00:17]} O-O {[%emt 0:00:32]} 12. Qe2 {[%emt 0:00:32]} d6 {[%emt 0:02:21]} 13. e4 {[%emt 0:04:12]} dxe4 {[%emt 0:04:43]} 14. Nxe4 {[%emt 0:00:24]} Nxe4 {[%emt 0:01:33]} 15. Qxe4 {[%emt 0:00:28][%csl Gd3][%cal Re4h7]} g6 {[%emt 0:00:42]} 16. Qe3 {[%emt 0:00:44]} Kg7 {[%emt 0:00:48]} 17. Rad1 {[%emt 0:00:44]} Re8 {[%emt 0:07:15]} 18. Rfe1 {[%emt 0:00:35]} d5 {[%emt 0:04:24]} (18... Ne7 $11 {keeps the balance.}) 19. Nh2 {[%emt 0:00:57] White is more active.} h5 {[%emt 0:02:37]} 20. Nf3 {[%emt 0:00:14]} Rb8 {[%emt 0:05:15]} 21. Ng5 {[%emt 0:00:44]} (21. Rc1 $14) 21... Qf6 {[%emt 0:01:28]} (21... e5 $142 $1) 22. h4 {[%emt 0:00:24]} Na5 $2 {[%emt 0:05:00][%mdl 8192] [#] Loses the game.} (22... e5 $11) 23. Qg3 $1 $18 {[%emt 0:00:54] Hoping for Re3. White is clearly winning.} Nc4 {[%emt 0:01:16] Against Re3} 24. b3 {[%emt 0:00:30]} Nb2 {[%emt 0:05:32]} 25. Rd2 {[%emt 0:03:14]} Nxd3 {[%emt 0:00:35]} 26. Rxd3 {[%emt 0:00:08]} Qd8 {[%emt 0:12:23]} 27. Rf3 {[%emt 0:01:45]} Re7 {[%emt 0:00:56] [#]} 28. Rxf7+ $1 {[%emt 0:00:15][%mdl 512]} Rxf7 {[%emt 0:01:15]} 29. Nxe6+ {[%emt 0:00:11]} Kh7 {[%emt 0:01:13]} 30. Nxd8 {[%emt 0:00:35]} Rxd8 {[%emt 0:00:07]} 31. Re6 {[%emt 0:00:25][%csl LRb6,LRg6]} Rg7 {[%emt 0:00:56] [#]} 32. Rxg6 $3 {[%emt 0:01:00][%mdl 512] Weighted Error Value: White=0.22 (precise) /Black=0.64} 1-0

[Event "44th Chess Olympiad Open 2022"]
[Site "Chennai"]
[Date "2022.08.05"]
[Round "7.62"]
[White "Mafnas, Peter"]
[Black "Badene, Habtamu Bayu"]
[Result "0-1"]
[ECO "A01"]
[WhiteElo "2039"]
[BlackElo "2011"]
[Annotator "TA"]
[PlyCount "134"]
[EventDate "2022.07.29"]
[EventType "team-tourn"]
[EventCountry "IND"]
[SourceTitle "playchess.com"]
[Source "ChessBase"]
[SourceQuality "1"]
[WhiteTeam "GUM"]
[BlackTeam "Ethiopia"]
[BlackTeamCountry "ETH"]
[TimeControl "40/5400+30:1800+30"]

{[%evp 9,134,-2,-20,-15,0,0,13,-150,-158,-275,-256,-248,-254,-253,-231,-522,-513,-522,-475,-532,-225,-197,-139,-294,-192,-359,-356,-348,-45,-46,-54,-45,-56,-59,-56,-62,-66,-48,-22,-21,-7,-24,0,0,34,37,41,26,18,0,21,13,43,41,65,56,56,56,58,58,61,61,33,0,62,17,37,0,30,-43,-29,-106,-106,-139,-139,-139,-96,-140,-140,-149,-148,-154,-148,-202,-176,-229,-229,-232,-218,-221,-188,-233,-162,-149,0,-233,-231,-29982,-29983,-29983,-504,-1238,-521,-530,-530,-449,-439,-3297,-3192,-2168,-2089,-29967,-29965,-29972,-29971,-29973,-29974,-8129,-6001,-29977,-29976,-29976,-29977,-29985,-29978,-29987,-29988]} 1. c4 {[%emt 0:00:42]} Nf6 {[%emt 0:00:12][%cal Bg8f6,Bf6d5,Bd5b4,Bb4d3][%mdl 32]} 2. b3 {[%emt 0:00:12]} e5 {[%emt 0:00:56]} 3. Bb2 {[%emt 0:00:26]} Nc6 {[%emt 0:00:30]} 4. e3 {[%emt 0:01:23]} d5 {[%emt 0:00:24]} 5. cxd5 {[%emt 0:00:42]} Nxd5 {[%emt 0:00:28]} 6. Nf3 {[%emt 0:00:45] A01: Nimzowitsch-Larsen Opening.} e4 {[%emt 0:02:10]} 7. Nd4 {[%emt 0:00:24]} Ne5 {[%emt 0:01:16]} 8. Nc3 $2 {[%emt 0:11:14]} (8. Qc2 $11 Qh4 9. Bb5+ (9. Nc3 Nb4 $14) 9... Bd7 10. Bxd7+ Kxd7 11. Nf5) 8... Nb4 $1 $17 {[%emt 0:03:49] Black is more active.} (8... Bg4 9. Qb1 Nxc3 10. Bxc3 Nd3+ 11. Bxd3 exd3 12. Qxd3 $16) 9. Qb1 {[%emt 0:03:22]} (9. Nxe4 $17 c5 10. Bb5+ Bd7 11. O-O (11. Bxd7+ $2 Qxd7 12. O-O cxd4 $17) 11... cxd4 12. Qh5) 9... Nbd3+ {[%emt 0:01:50]} 10. Bxd3 {[%emt 0:00:26]} Nxd3+ {[%emt 0:00:17]} 11. Kf1 {[%emt 0:00:00]} Qh4 {[%emt 0:01:35][%csl Gd3][%cal Rh4f2] [#]} 12. Nd1 $146 {[%emt 0:01:41]} (12. g3 Qh3+ 13. Kg1) ({Predecessor:} 12. g3 Bh3+ 13. Ke2 Qh5+ {0-1 (13) Lennartz,A-Rosche,E freechess.de 2016}) 12... Bg4 $19 {[%emt 0:05:37] Hoping for ...Bxd1.} 13. Ne2 {[%emt 0:06:51]} O-O-O {[%emt 0:01:57]} 14. Bc3 {[%emt 0:02:59]} Rd5 {[%emt 0:07:50]} (14... Bxe2+ $142 15. Kxe2 Rd5) 15. Ng3 {[%emt 0:08:32]} Bd6 {[%emt 0:03:12]} (15... Bxd1 $19 16. Qxd1 Bd6) 16. Kg1 $2 {[%emt 0:05:16]} (16. Nb2 $17 {was the only chance.}) 16... f5 {[%emt 0:09:10] Threatens to win with ...f4.} 17. Bxg7 $2 {[%emt 0:05:01]} (17. b4) 17... Rg8 {[%emt 0:00:29] And now ...f4 would win.} 18. Nc3 {[%emt 0:02:28] [#]} Nxf2 $2 {[%emt 0:05:16]} ({Black should try} 18... Rxg7 $1 $19 19. Nxd5 f4) 19. Nxd5 $15 {[%emt 0:02:39]} Nxh1 {[%emt 0:00:19] Dancing on a razor blade.} 20. Bf6 {[%emt 0:01:52] [#]} Qh6 {[%emt 0:02:25]} 21. Ne7+ {[%emt 0:01:41]} Bxe7 {[%emt 0:02:09]} 22. Bxe7 {[%emt 0:01:12]} Nxg3 {[%emt 0:01:15]} 23. hxg3 {[%emt 0:00:20]} Qe6 {[%emt 0:02:41]} 24. Bh4 {[%emt 0:04:22]} Qd5 {[%emt 0:00:46]} 25. Qc2 {[%emt 0:10:25]} Rg6 {[%emt 0:06:44]} 26. Qc3 {[%emt 0:04:02]} h5 {[%emt 0:03:24]} 27. Rc1 {[%emt 0:02:19][%csl Gc1][%cal Rc3c7]} c6 {[%emt 0:01:06]} 28. Qh8+ {[%emt 0:05:14]} Rg8 {[%emt 0:02:47]} 29. Qf6 {[%emt 0:03:51]} Re8 {[%emt 0:00:45]} 30. Bg5 {[%emt 0:01:00]} Qe6 {[%emt 0:02:00]} (30... Qxd2 {[#]} 31. Rxc6+ $1 {[%mdl 512]} Kb8 32. Qf7 bxc6 33. Bf4+ Ka8 34. Qxe8+ Kb7 35. Qb8+ Ka6 36. Qc8+ Kb5 37. Qb7+ Kc5 38. Qxa7+ Kb4 39. Be5 $18) 31. Qd4 {[%emt 0:02:03]} Kb8 {[%emt 0:04:06]} 32. Bf4+ {[%emt 0:00:37]} Ka8 {[%emt 0:00:23]} 33. Rc5 {[%emt 0:00:34]} b6 {[%emt 0:02:48] Against Ra5} 34. Re5 {[%emt 0:03:31]} Qc8 {[%emt 0:00:33]} 35. Rxe8 {[%emt 0:01:04]} Qxe8 $14 {[%emt 0:00:04][%mdl 4096] Endgame KQB-KQB} 36. Qd6 {[%emt 0:01:03]} Be2 {[%emt 0:01:20]} ({Better is} 36... Kb7 $11) 37. a4 {[%emt 0:00:37]} Bd1 {[%emt 0:01:10]} 38. Qb4 {[%emt 0:01:13]} (38. a5 $5) 38... Qf7 {[%emt 0:01:22]} 39. Qc3 {[%emt 0:01:54]} (39. a5 $11 Kb7 40. axb6 axb6 41. Qd6) 39... Kb7 $15 {[%emt 0:00:28]} 40. b4 {[%emt 0:03:20]} (40. Qh8 $11 {remains equal.}) 40... Bxa4 $17 {[%emt 0:00:33]} 41. d4 {[%emt 0:30:28]} exd3 {[%emt 0:31:32]} 42. Qxd3 {[%emt 0:00:10]} Qd5 {[%emt 0:04:17]} 43. Qc3 {[%emt 0:01:59]} Bb3 {[%emt 0:04:34]} 44. Qg7+ {[%emt 0:01:35]} Qf7 {[%emt 0:00:29]} 45. Qd4 {[%emt 0:00:46]} Bd5 {[%emt 0:00:27]} 46. Kf2 {[%emt 0:00:25]} (46. Kh2 $17) 46... Qe7 {[%emt 0:02:07]} 47. b5 {[%emt 0:00:00]} (47. Be5 $142) 47... Qf7 $19 {[%emt 0:00:00]} 48. bxc6+ {[%emt 0:00:00]} Bxc6 {[%emt 0:00:00]} 49. Qh8 {[%emt 0:00:00]} Qd5 {[%emt 0:00:00]} 50. Qg7+ {[%emt 0:00:00]} Ka6 {[%emt 0:00:00]} 51. Qa1+ {[%emt 0:00:00]} Kb7 {[%emt 0:00:00]} (51... Qa5 $17 52. Qb2 Qa4) 52. Qg7+ {[%emt 0:00:00]} Qd7 {[%emt 0:00:00]} ({But not} 52... Ka6 $2 53. Qa1+ Kb7 54. Qg7+) 53. Qh8 {[%emt 0:00:00]} (53. Qd4 $19) 53... Qd2+ {[%emt 0:00:00]} 54. Kf1 {[%emt 0:00:00]} Bxg2+ {[%emt 0:00:00]} (54... Qxg2+ $142 55. Ke1 Qg1+ 56. Kd2 Qf2+ 57. Kc3 Qe1+ 58. Kd3 Be4+ 59. Kc4 Qf1+ 60. Kb3 Qd1+ 61. Ka3 Qd3+ 62. Kb2 Qd2+ 63. Ka3 Qd3+ 64. Kb2 Qd2+ 65. Ka3 Bd5 66. Qg7+ Ka6 67. Qa1 Ka5 68. Bd6 Qc2 69. Bb4+ Kb5 70. Qf1+ Kc6 71. Qc1 Qxc1+ 72. Ka4 Qd1+ 73. Ka3 Qb3#) 55. Kg1 {[%emt 0:00:00]} Bd5 {[%emt 0:00:00]} (55... Be4 $142 {[%csl Ge4][%cal Rd2g2]} 56. Qg7+ Kc6 57. Qf6+ Kb5 58. Qe5+ Kc4 59. Qd4+ Qxd4 60. exd4 b5) 56. Qg7+ {[%emt 0:00:00]} Ka6 {[%emt 0:00:00][%csl Gd5][%cal Rd2g2]} 57. Qa1+ {[%emt 0:00:00]} Qa2 {[%emt 0:00:00]} 58. Be5 {[%emt 0:00:00]} (58. Qf1+ $142 Kb7 59. e4 Bxe4 60. Qf2 Qa1+ 61. Qf1 Qd4+ 62. Qf2 Qd1+ 63. Qf1 Qd4+ 64. Qf2 Qd1+ 65. Qf1) 58... Qxa1+ {[%emt 0:00:00]} 59. Bxa1 {[%emt 0:00:00] KB-KB} Kb5 {[%emt 0:00:00]} 60. Kf1 {[%emt 0:00:00]} a5 {[%emt 0:00:00]} 61. Ke2 {[%emt 0:00:00]} Kc4 {[%emt 0:00:00]} 62. Bd4 {[%emt 0:00:00]} b5 {[%emt 0:00:00][%cal Bb6b5,Bb5b4][%mdl 32]} 63. Kd2 {[%emt 0:00:00]} Kb3 {[%emt 0:00:00] ( -> ...Be4)} 64. Kc1 {[%emt 0:00:00]} Be4 {[%emt 0:00:00] Black mates.} 65. Be5 {[%emt 0:00:00]} b4 {[%emt 0:00:00]} 66. Bd4 {[%emt 0:00:00]} a4 {[%emt 0:00:00]} 67. Be5 {[%emt 0:00:02]} Ka2 {[%emt 0:00:00] Weighted Error Value: White=0.69/Black=0.55} 0-1

[Event "44th Chess Olympiad Open 2022"]
[Site "Chennai"]
[Date "2022.08.05"]
[Round "7.62"]
[White "Soriano, Rudolph P."]
[Black "Abera, Aydagnuhem Gezachew"]
[Result "1/2-1/2"]
[ECO "D21"]
[WhiteElo "1824"]
[BlackElo "2137"]
[Annotator "TA"]
[PlyCount "115"]
[EventDate "2022.07.29"]
[EventType "team-tourn"]
[EventCountry "IND"]
[SourceTitle "playchess.com"]
[Source "ChessBase"]
[SourceQuality "1"]
[WhiteTeam "GUM"]
[BlackTeam "Ethiopia"]
[BlackTeamCountry "ETH"]
[TimeControl "40/5400+30:1800+30"]

{[%evp 9,115,-91,-95,-102,55,66,69,56,49,10,17,-3,2,0,0,0,0,0,0,0,-18,0,21,25,145,157,143,86,88,77,143,58,393,394,382,385,483,439,419,433,437,422,426,426,475,475,502,467,491,498,496,483,574,481,630,621,608,583,583,551,974,719,696,697,678,299,293,295,282,281,262,214,213,133,134,135,142,118,128,0,172,160,161,103,143,0,560,0,0,0,0,0,0,0,0,0,0,0,0,0,0,0,0,0,0,0,0,0]} 1. Nf3 {[%emt 0:00:12]} d5 {[%emt 0:00:17]} 2. d4 {[%emt 0:00:15]} c5 {[%emt 0:00:21]} 3. c4 {[%emt 0:00:40]} dxc4 {[%emt 0:01:39]} 4. g3 {[%emt 0:00:31]} cxd4 {[%emt 0:00:40]} 5. Bg2 {[%emt 0:00:21]} Nc6 {[%emt 0:00:42] [#]} 6. Qa4 $146 {[%emt 0:00:25][%cal Of3d4] D21: Queen's Gambit Accepted: 3 Nf3 sidelines.} ({Predecessor:} 6. O-O g6 7. Qa4 Bg7 8. Qxc4 Be6 9. Qb5 Qb6 10. Qxb6 axb6 11. Na3 d3 12. Nb5 Rxa2 13. Rxa2 Bxa2 14. exd3 {0-1 (54) Pessi,J (2088)-Kivimaki,J (2198) Finland 2013}) 6... Qa5+ $2 {[%emt 0:02:35]} (6... Nf6 $17 {Threatens to win with ...Bd7.} 7. Nxd4 Qxd4 8. Bxc6+ Bd7 9. Bxd7+ Qxd7 10. Qxd7+ Kxd7) 7. Qxa5 $14 {[%emt 0:00:20]} Nxa5 {[%emt 0:00:05]} 8. Nxd4 {[%emt 0:00:28] Strongly threatening Bd2. White is slightly better.} Bd7 {[%emt 0:01:44]} 9. O-O {[%emt 0:01:04][%mdl 1024] White has compensation.} (9. Bd2 $5 {[%cal Rd2a5]} e5 10. Nb5 Bxb5 11. Bxa5 $11) 9... e5 {[%emt 0:00:35]} 10. Nc2 {[%emt 0:02:09]} (10. Bd2 $5 {[%cal Rd2a5]}) 10... Nf6 {[%emt 0:00:44]} 11. Ne3 {[%emt 0:00:20]} Bc5 {[%emt 0:03:17]} 12. Bd2 {[%emt 0:00:39]} Bxe3 {[%emt 0:01:10]} 13. Bxe3 {[%emt 0:01:03]} Bc6 {[%emt 0:02:21]} 14. Na3 {[%emt 0:02:11]} Bxg2 {[%emt 0:02:49]} 15. Kxg2 {[%emt 0:00:18]} Ne4 {[%emt 0:07:05]} 16. Rac1 {[%emt 0:02:08]} b5 {[%emt 0:08:44]} (16... b6 $11) 17. Nxb5 $16 {[%emt 0:09:14] And now Nc7+ would win.} Rb8 {[%emt 0:02:44]} 18. Nc3 {[%emt 0:02:14] White is more active.} (18. Na3 $142 $1) 18... Nxc3 {[%emt 0:02:05]} 19. bxc3 {[%emt 0:00:14]} a6 {[%emt 0:01:58]} (19... Ke7 $142) 20. Bc5 {[%emt 0:01:08]} (20. Rfd1 $16) 20... Nb7 $2 {[%emt 0:04:45][%mdl 8192]} (20... Kd7 $14) 21. Rb1 $18 {[%emt 0:01:04]} Kd7 {[%emt 0:00:20]} 22. Ba7 {[%emt 0:00:26]} Kc6 {[%emt 0:01:50]} 23. Bxb8 {[%emt 0:00:51]} Rxb8 {[%emt 0:00:03][%mdl 4096] Endgame KRR-KRN} 24. Rb4 {[%emt 0:00:34]} Rd8 {[%emt 0:01:14]} 25. Rxc4+ {[%emt 0:01:21]} Nc5 {[%emt 0:00:11]} 26. Rb1 {[%emt 0:05:32]} f5 {[%emt 0:07:24]} 27. a4 {[%emt 0:05:18]} Rd2 {[%emt 0:02:51]} 28. Kf1 {[%emt 0:00:12]} Ra2 {[%emt 0:02:44]} 29. Rb8 {[%emt 0:04:45]} Kd5 {[%emt 0:00:52]} 30. Rh4 {[%emt 0:00:45]} h6 {[%emt 0:05:45]} 31. Rb6 {[%emt 0:01:16][%csl Gh4][%cal Rc3c4]} e4 {[%emt 0:03:28]} 32. Rh5 {[%emt 0:03:31]} Rxa4 {[%emt 0:02:42]} 33. Rxf5+ {[%emt 0:00:59]} Kc4 {[%emt 0:00:01]} 34. Rc6 {[%emt 0:01:35]} Ra1+ {[%emt 0:00:56]} 35. Kg2 {[%emt 0:00:00]} Ra5 {[%emt 0:00:06]} 36. h4 {[%emt 0:03:35]} Rb5 {[%emt 0:00:30]} 37. Rfxc5+ {[%emt 0:05:48]} Rxc5 {[%emt 0:00:26]} 38. Rxa6 {[%emt 0:00:10]} Kxc3 {[%emt 0:00:34] KR-KR} 39. Rg6 {[%emt 0:00:23]} Rc7 {[%emt 0:01:12]} 40. g4 {[%emt 0:00:13]} Kd2 {[%emt 0:01:35]} 41. e3 {[%emt 0:31:01]} Ke2 {[%emt 0:33:39]} 42. Ra6 {[%emt 0:00:24]} Rf7 {[%emt 0:01:37]} 43. Ra2+ {[%emt 0:00:24]} Ke1 {[%emt 0:04:26] [#]} 44. Kg1 {[%emt 0:00:37]} (44. h5 $1 $16) 44... Re7 $2 {[%emt 0:02:00]} (44... Rf6 $11 {and Black is okay.}) 45. Ra5 {[%emt 0:00:59]} Ke2 {[%emt 0:03:37]} 46. Rf5 {[%emt 0:00:34] Inhibits Rf7.} (46. Kg2 $18) 46... Re6 {[%emt 0:01:00]} 47. g5 {[%emt 0:02:21]} ({Better is} 47. Kh2 $16) 47... Re7 $2 {[%emt 0:10:29][%mdl 8192] [#]} (47... hxg5 $1 $11 48. hxg5 (48. Rxg5 Rf6 $11) 48... g6) 48. Kg2 $2 {[%emt 0:01:06]} (48. g6 $1 $18 Rb7 49. Kg2) 48... g6 $11 {[%emt 0:04:27] The position is equal.} 49. Rf6 {[%emt 0:03:29]} hxg5 {[%emt 0:00:32]} 50. hxg5 {[%emt 0:02:07]} Re5 $1 {[%emt 0:00:08]} 51. Rxg6 {[%emt 0:01:13] Black must now prevent Kg3.} Rf5 {[%emt 0:00:05]} 52. Rf6 {[%emt 0:00:29]} Rxg5+ {[%emt 0:00:55]} 53. Kh3 {[%emt 0:00:35]} Rg8 {[%emt 0:00:00]} 54. Rf4 {[%emt 0:00:00]} Rg7 {[%emt 0:00:00]} 55. Kh2 {[%emt 0:00:00]} Rg8 {[%emt 0:00:00]} 56. Kh3 {[%emt 0:00:00]} Rg7 {[%emt 0:00:00]} 57. Rxe4 {[%emt 0:00:00]} Kxf2 {[%emt 0:00:00]} 58. Re8 {[%emt 0:00:00] White really could win this.  Weighted Error Value: White=0.16 (very precise) /Black=0.61} 1/2-1/2

[Event "44th Chess Olympiad Open 2022"]
[Site "Chennai"]
[Date "2022.08.05"]
[Round "7.63"]
[White "Paiva, Donaldo"]
[Black "Oatlhotse, Providence"]
[Result "1/2-1/2"]
[ECO "B06"]
[WhiteElo "2191"]
[BlackElo "2204"]
[Annotator "NA"]
[PlyCount "110"]
[EventDate "2022.07.29"]
[EventType "team-tourn"]
[EventCountry "IND"]
[SourceTitle "playchess.com"]
[Source "ChessBase"]
[SourceQuality "1"]
[WhiteTeam "Mozambique"]
[BlackTeam "Botswana"]
[WhiteTeamCountry "MOZ"]
[BlackTeamCountry "BOT"]
[TimeControl "40/5400+30:1800+30"]

1. d4 {[%emt 0:00:03]} g6 {[%emt 0:00:39]} 2. e4 {[%emt 0:00:11]} Bg7 {[%emt 0:00:12]} 3. Nc3 {[%emt 0:00:05]} d6 {[%emt 0:00:34]} 4. Be3 {[%emt 0:00:04]} a6 {[%emt 0:00:54]} 5. Qd2 {[%emt 0:00:06]} b5 {[%emt 0:00:29]} 6. a4 {[%emt 0:00:28]} b4 {[%emt 0:00:43]} 7. Nd1 {[%emt 0:02:03]} a5 {[%emt 0:03:25]} 8. c3 {[%emt 0:00:32]} Nf6 {[%emt 0:01:23]} 9. Bd3 {[%emt 0:00:13]} O-O {[%emt 0:15:15]} 10. cxb4 {[%emt 0:04:24]} axb4 {[%emt 0:00:04]} 11. Ne2 {[%emt 0:00:06]} Ng4 {[%emt 0:13:29]} 12. Qxb4 {[%emt 0:01:59]} c5 {[%emt 0:02:50]} 13. Qd2 {[%emt 0:02:12]} Nxe3 {[%emt 0:18:20]} 14. fxe3 {[%emt 0:00:01]} Nc6 {[%emt 0:00:27]} 15. Bb5 {[%emt 0:01:11]} Qb6 {[%emt 0:02:28]} 16. Ndc3 {[%emt 0:06:51]} e6 {[%emt 0:02:23]} 17. Rd1 {[%emt 0:09:25]} Nb4 {[%emt 0:07:36]} 18. O-O {[%emt 0:02:40]} Bh6 {[%emt 0:02:45]} 19. Kh1 {[%emt 0:00:36]} Ba6 {[%emt 0:04:13]} 20. b3 {[%emt 0:04:53]} Bb7 {[%emt 0:05:39]} 21. d5 {[%emt 0:14:41]} e5 {[%emt 0:02:06]} 22. Rf3 {[%emt 0:04:25]} Bc8 {[%emt 0:00:17]} 23. h3 {[%emt 0:00:40]} Ra7 {[%emt 0:00:17]} 24. Rdf1 {[%emt 0:02:29]} Qd8 {[%emt 0:02:17]} 25. Nc1 {[%emt 0:01:36]} f5 {[%emt 0:00:58]} 26. Nd3 {[%emt 0:01:49]} Nxd3 {[%emt 0:00:55]} 27. Bxd3 {[%emt 0:00:59]} f4 {[%emt 0:00:44]} 28. exf4 {[%emt 0:14:13]} Raf7 {[%emt 0:00:14]} 29. Qe1 {[%emt 0:02:00]} exf4 {[%emt 0:04:51]} 30. e5 {[%emt 0:00:05]} dxe5 {[%emt 0:00:30]} 31. Bc4 {[%emt 0:00:06]} Rf5 {[%emt 0:01:05]} 32. Ne4 {[%emt 0:00:15]} Rh5 {[%emt 0:00:54]} 33. Nxc5 {[%emt 0:01:38]} Bg4 {[%emt 0:02:33]} 34. Ne6 {[%emt 0:00:31]} Qd6 {[%emt 0:01:09]} 35. Nxf8 {[%emt 0:03:36]} Bxf3 {[%emt 0:00:53]} 36. Rxf3 {[%emt 0:00:14]} Bxf8 {[%emt 0:00:12]} 37. Qe4 {[%emt 0:00:38]} Kg7 {[%emt 0:00:40]} 38. Rf1 {[%emt 0:00:43]} Qd7 {[%emt 0:00:21]} 39. Rf3 {[%emt 0:10:12]} Bd6 {[%emt 0:00:11]} 40. Bd3 {[%emt 0:00:47]} Qc7 {[%emt 0:01:10]} 41. Bc4 {[%emt 0:35:14]} Qc5 {[%emt 0:31:08]} 42. Bd3 {[%emt 0:00:00]} Rg5 {[%emt 0:00:00]} 43. Qc4 {[%emt 0:00:00]} Qa3 {[%emt 0:00:00]} 44. Be4 {[%emt 0:00:00]} Rg3 {[%emt 0:00:00]} 45. Kh2 {[%emt 0:00:00]} Rxf3 {[%emt 0:00:00]} 46. Bxf3 {[%emt 0:00:00]} Qa1 {[%emt 0:00:00]} 47. Qc6 {[%emt 0:00:00]} Qe1 {[%emt 0:00:00]} 48. Qd7+ {[%emt 0:00:00]} Kh6 {[%emt 0:00:00]} 49. Qxd6 {[%emt 0:00:00]} Qg3+ {[%emt 0:00:00]} 50. Kh1 {[%emt 0:00:00]} Qe1+ {[%emt 0:00:00]} 51. Kh2 {[%emt 0:00:00]} Qg3+ {[%emt 0:00:00]} 52. Kh1 {[%emt 0:00:00]} Qe1+ {[%emt 0:00:00]} 53. Kh2 {[%emt 0:00:00]} Qg3+ {[%emt 0:00:00]} 54. Kh1 {[%emt 0:00:00]} Qe1+ {[%emt 0:00:00]} 55. Kh2 {[%emt 0:00:00]} Qg3+ {[%emt 0:00:00]} 1/2-1/2